[Event "Betsys MČR v online bleskovém šachu 2021"]
[Site "Chess.com"]
[Date "2021.04.17"]
[Round "11"]
[White "YoungMegaMind"]
[Black "Maldaj"]
[Result "1-0"]
[WhiteElo "2245"]
[BlackElo "2382"]
[TimeControl "180+1"]
[EndTime "10:49:25 PDT"]
[Termination "Uživatel YoungMegaMind zvítězil matem"]

1. Nf3 {[%clk 0:03:00.9]} 1... d5 {[%clk 0:02:59.9]} 2. e3 {[%clk 0:03:01.1]}
2... c6 {[%clk 0:03:00.7]} 3. b3 {[%clk 0:03:00.8]} 3... Nf6 {[%clk 0:02:59.2]}
4. Bb2 {[%clk 0:03:00.9]} 4... Nbd7 {[%clk 0:03:00.1]} 5. c4 {[%clk 0:03:01.3]}
5... e6 {[%clk 0:03:00.6]} 6. Nc3 {[%clk 0:03:01.7]} 6... Bd6 {[%clk 0:03:01]}
7. Be2 {[%clk 0:03:00]} 7... Qe7 {[%clk 0:03:01.3]} 8. d4 {[%clk 0:02:55]} 8...
O-O {[%clk 0:03:00.6]} 9. O-O {[%clk 0:02:54.5]} 9... Re8 {[%clk 0:03:00.1]} 10.
Qc2 {[%clk 0:02:49.8]} 10... dxc4 {[%clk 0:02:58]} 11. Bxc4 {[%clk 0:02:46.6]}
11... b5 {[%clk 0:02:56.9]} 12. Be2 {[%clk 0:02:45.2]} 12... a6 {[%clk
0:02:55.5]} 13. e4 {[%clk 0:02:41]} 13... e5 {[%clk 0:02:55.4]} 14. Rad1 {[%clk
0:02:14.2]} 14... Bb7 {[%clk 0:02:54.1]} 15. dxe5 {[%clk 0:01:31.9]} 15... Nxe5
{[%clk 0:02:53.7]} 16. g3 {[%clk 0:01:25]} 16... b4 {[%clk 0:02:37.5]} 17. Na4
{[%clk 0:01:17.8]} 17... c5 {[%clk 0:02:37.6]} 18. Nxe5 {[%clk 0:00:59.2]} 18...
Bxe5 {[%clk 0:02:36.9]} 19. f3 {[%clk 0:00:44.4]} 19... Bd4+ {[%clk 0:02:11.9]}
20. Bxd4 {[%clk 0:00:42.3]} 20... cxd4 {[%clk 0:02:12.8]} 21. Bc4 {[%clk
0:00:38.3]} 21... Rac8 {[%clk 0:02:10.6]} 22. Qd3 {[%clk 0:00:33.4]} 22... Red8
{[%clk 0:02:06]} 23. Rfe1 {[%clk 0:00:30.1]} 23... Qe5 {[%clk 0:02:04.8]} 24.
Bxa6 {[%clk 0:00:19.2]} 24... Bxa6 {[%clk 0:01:58.6]} 25. Qxa6 {[%clk
0:00:20.1]} 25... Rc2 {[%clk 0:01:57.3]} 26. Re2 {[%clk 0:00:17.5]} 26... Rdc8
{[%clk 0:01:30.9]} 27. Rxc2 {[%clk 0:00:15.5]} 27... Rxc2 {[%clk 0:01:31.8]} 28.
Qd3 {[%clk 0:00:14]} 28... Rxa2 {[%clk 0:01:29.2]} 29. Qxd4 {[%clk 0:00:14.3]}
29... Qxd4+ {[%clk 0:01:25]} 30. Rxd4 {[%clk 0:00:15.2]} 30... h5 {[%clk
0:01:24.5]} 31. Rxb4 {[%clk 0:00:14.1]} 31... h4 {[%clk 0:01:24.4]} 32. gxh4
{[%clk 0:00:14.4]} 32... Nh5 {[%clk 0:01:24.4]} 33. e5 {[%clk 0:00:14.8]} 33...
Nf4 {[%clk 0:01:24.3]} 34. Rxf4 {[%clk 0:00:14.6]} 34... Ra3 {[%clk 0:01:24.2]}
35. Rb4 {[%clk 0:00:14.5]} 35... g6 {[%clk 0:01:24]} 36. Rb8+ {[%clk 0:00:14.6]}
36... Kg7 {[%clk 0:01:24.2]} 37. Kg2 {[%clk 0:00:15.5]} 37... Ra2+ {[%clk
0:01:23.7]} 38. Kg3 {[%clk 0:00:15.9]} 38... Re2 {[%clk 0:01:24.6]} 39. Kf4
{[%clk 0:00:15.1]} 39... Rxh2 {[%clk 0:01:24.5]} 40. Kg3 {[%clk 0:00:15.3]}
40... Re2 {[%clk 0:01:22.7]} 41. Re8 {[%clk 0:00:15.4]} 41... Re3 {[%clk
0:01:21.6]} 42. Nc5 {[%clk 0:00:15.2]} 42... Rc3 {[%clk 0:01:21.2]} 43. b4
{[%clk 0:00:15.5]} 43... Rc4 {[%clk 0:01:21.5]} 44. Rb8 {[%clk 0:00:13.8]} 44...
Kh7 {[%clk 0:01:21]} 45. Rb7 {[%clk 0:00:13.9]} 45... Kg7 {[%clk 0:01:20.7]} 46.
e6 {[%clk 0:00:14.3]} 46... Kh6 {[%clk 0:01:20.3]} 47. Rxf7 {[%clk 0:00:13.2]}
47... g5 {[%clk 0:01:20.4]} 48. hxg5+ {[%clk 0:00:13.1]} 48... Kxg5 {[%clk
0:01:20.5]} 49. e7 {[%clk 0:00:13.4]} 49... Kg6 {[%clk 0:01:17.2]} 50. e8=Q
{[%clk 0:00:13.2]} 50... Rxb4 {[%clk 0:01:17.8]} 51. Qg8+ {[%clk 0:00:12.9]}
51... Kh6 {[%clk 0:01:18.7]} 52. Rh7# {[%clk 0:00:13.6]} 1-0

[Event "Betsys MČR v online bleskovém šachu 2021"]
[Site "Chess.com"]
[Date "2021.04.17"]
[Round "11"]
[White "Dasty78"]
[Black "Kokos3"]
[Result "0-1"]
[WhiteElo "2005"]
[BlackElo "1627"]
[TimeControl "180+1"]
[EndTime "10:49:26 PDT"]
[Termination "Uživatel Kokos3 zvítězil po vzdání soupeře"]

1. e4 {[%clk 0:02:59.3]} 1... e5 {[%clk 0:02:59.9]} 2. Nf3 {[%clk 0:02:58.9]}
2... Nc6 {[%clk 0:02:59.9]} 3. Bb5 {[%clk 0:02:58.7]} 3... a6 {[%clk 0:03:00.2]}
4. Ba4 {[%clk 0:02:58.7]} 4... Nf6 {[%clk 0:03:00]} 5. O-O {[%clk 0:02:57.9]}
5... Be7 {[%clk 0:02:59.3]} 6. Re1 {[%clk 0:02:56.9]} 6... b5 {[%clk 0:02:59.1]}
7. Bb3 {[%clk 0:02:57.1]} 7... O-O {[%clk 0:02:58]} 8. d4 {[%clk 0:02:54.9]}
8... exd4 {[%clk 0:02:48.8]} 9. e5 {[%clk 0:02:48.8]} 9... Ne8 {[%clk 0:02:43]}
10. Nxd4 {[%clk 0:02:42.5]} 10... Nxd4 {[%clk 0:02:42.9]} 11. Qxd4 {[%clk
0:02:42.5]} 11... d6 {[%clk 0:02:35.7]} 12. Bd5 {[%clk 0:02:34.8]} 12... Rb8
{[%clk 0:02:29.7]} 13. Nc3 {[%clk 0:02:00.4]} 13... dxe5 {[%clk 0:02:25.3]} 14.
Qxe5 {[%clk 0:01:56.9]} 14... Bf6 {[%clk 0:02:23.8]} 15. Qe4 {[%clk 0:01:47.5]}
15... Nd6 {[%clk 0:02:22.7]} 16. Qf3 {[%clk 0:01:41.1]} 16... Bf5 {[%clk
0:02:14.6]} 17. Re2 {[%clk 0:00:47.6]} 17... Re8 {[%clk 0:02:04.8]} 18. Be3
{[%clk 0:00:46.3]} 18... Qc8 {[%clk 0:01:58]} 19. h3 {[%clk 0:00:44.7]} 19... b4
{[%clk 0:01:38.9]} 20. Na4 {[%clk 0:00:39.3]} 20... Be5 {[%clk 0:01:22.1]} 21.
Rae1 {[%clk 0:00:35]} 21... Bf6 {[%clk 0:01:13.9]} 22. c3 {[%clk 0:00:22.6]}
22... a5 {[%clk 0:01:11.6]} 23. g4 {[%clk 0:00:20.1]} 23... Bd7 {[%clk 0:01:11]}
24. g5 {[%clk 0:00:19.8]} 24... c6 {[%clk 0:00:53.8]} 25. gxf6 {[%clk
0:00:16.3]} 25... cxd5 {[%clk 0:00:53]} 26. fxg7 {[%clk 0:00:15.9]} 26... Bxa4
{[%clk 0:00:49.1]} 27. Qxd5 {[%clk 0:00:13.6]} 27... Qe6 {[%clk 0:00:43.5]} 28.
Qd4 {[%clk 0:00:08.7]} 28... Bc6 {[%clk 0:00:40.1]} 29. Bf4 {[%clk 0:00:07.8]}
29... Qg6+ {[%clk 0:00:37.1]} 30. Bg3 {[%clk 0:00:06]} 30... Rxe2 {[%clk
0:00:34.1]} 31. Rxe2 {[%clk 0:00:05.2]} 31... Qb1+ {[%clk 0:00:32.6]} 0-1

[Event "Betsys MČR v online bleskovém šachu 2021"]
[Site "Chess.com"]
[Date "2021.04.17"]
[Round "11"]
[White "JindrichT_CZE"]
[Black "jhdghaka"]
[Result "0-1"]
[WhiteElo "2042"]
[BlackElo "1899"]
[TimeControl "180+1"]
[EndTime "10:49:27 PDT"]
[Termination "Uživatel jhdghaka zvítězil matem"]

1. e4 {[%clk 0:03:00.9]} 1... c5 {[%clk 0:02:58.8]} 2. c4 {[%clk 0:03:00.6]}
2... Nc6 {[%clk 0:02:57]} 3. g3 {[%clk 0:03:00.4]} 3... g6 {[%clk 0:02:56.6]} 4.
Bg2 {[%clk 0:03:00.4]} 4... Bg7 {[%clk 0:02:56.7]} 5. Nc3 {[%clk 0:03:00.3]}
5... d6 {[%clk 0:02:54.9]} 6. Nge2 {[%clk 0:03:00.3]} 6... Nf6 {[%clk
0:02:54.5]} 7. d3 {[%clk 0:03:00.4]} 7... O-O {[%clk 0:02:54.6]} 8. h3 {[%clk
0:03:00.4]} 8... a6 {[%clk 0:02:53.9]} 9. Be3 {[%clk 0:03:00.4]} 9... Ne8 {[%clk
0:02:53.9]} 10. Qd2 {[%clk 0:02:58.9]} 10... Nc7 {[%clk 0:02:53.3]} 11. Bh6
{[%clk 0:02:58.3]} 11... Ne6 {[%clk 0:02:51.4]} 12. Bxg7 {[%clk 0:02:58.1]}
12... Kxg7 {[%clk 0:02:51.4]} 13. h4 {[%clk 0:02:58.1]} 13... Rb8 {[%clk
0:02:50.7]} 14. h5 {[%clk 0:02:58]} 14... Kg8 {[%clk 0:02:25.3]} 15. hxg6 {[%clk
0:02:48.3]} 15... fxg6 {[%clk 0:02:26.2]} 16. Qh6 {[%clk 0:02:41.1]} 16... Rf7
{[%clk 0:02:24.9]} 17. f4 {[%clk 0:02:37.6]} 17... Ned4 {[%clk 0:02:23]} 18.
O-O-O {[%clk 0:02:29.6]} 18... b5 {[%clk 0:02:20.7]} 19. cxb5 {[%clk 0:02:23.5]}
19... axb5 {[%clk 0:02:21.6]} 20. Nxd4 {[%clk 0:02:20.5]} 20... Nxd4 {[%clk
0:02:20.4]} 21. Nd5 {[%clk 0:02:11.5]} 21... Bg4 {[%clk 0:02:06.2]} 22. Rde1
{[%clk 0:02:03.4]} 22... Qa5 {[%clk 0:01:58.6]} 23. f5 {[%clk 0:01:52]} 23...
Qxa2 {[%clk 0:01:39.8]} 24. Nc3 {[%clk 0:01:41.6]} 24... Qa1+ {[%clk 0:01:16.7]}
25. Nb1 {[%clk 0:01:37.2]} 25... Qa4 {[%clk 0:01:04.4]} 26. Na3 {[%clk
0:01:26.9]} 26... gxf5 {[%clk 0:00:31.8]} 27. exf5 {[%clk 0:01:22.8]} 27... Nxf5
{[%clk 0:00:31.8]} 28. Qg5+ {[%clk 0:01:18.4]} 28... Rg7 {[%clk 0:00:31.7]} 29.
Bd5+ {[%clk 0:01:17.5]} 29... Kh8 {[%clk 0:00:26.8]} 30. Qd2 {[%clk 0:01:06.1]}
30... b4 {[%clk 0:00:25.5]} 31. Nc2 {[%clk 0:00:48.9]} 31... Rb6 {[%clk
0:00:10.8]} 32. Rh2 {[%clk 0:00:42.1]} 32... Ra6 {[%clk 0:00:10.5]} 33. Reh1
{[%clk 0:00:40.3]} 33... Qa1+ {[%clk 0:00:10.7]} 34. Nxa1 {[%clk 0:00:39.8]}
34... Rxa1+ {[%clk 0:00:11.6]} 35. Kc2 {[%clk 0:00:38]} 35... Nd4# {[%clk
0:00:12.5]} 0-1

[Event "Betsys MČR v online bleskovém šachu 2021"]
[Site "Chess.com"]
[Date "2021.04.17"]
[Round "11"]
[White "tondapesek"]
[Black "Vojta0007"]
[Result "0-1"]
[WhiteElo "1120"]
[BlackElo "1457"]
[TimeControl "180+1"]
[EndTime "10:49:27 PDT"]
[Termination "Uživatel Vojta0007 zvítězil na čas"]

1. e4 {[%clk 0:03:00.9]} 1... c5 {[%clk 0:02:59.3]} 2. Nc3 {[%clk 0:03:00.3]}
2... Nc6 {[%clk 0:02:55.9]} 3. d3 {[%clk 0:03:00.1]} 3... d6 {[%clk 0:02:54.8]}
4. g3 {[%clk 0:03:00.1]} 4... e6 {[%clk 0:02:54.1]} 5. Bg2 {[%clk 0:02:59.8]}
5... Nf6 {[%clk 0:02:51.4]} 6. f4 {[%clk 0:02:59.7]} 6... Be7 {[%clk 0:02:49.1]}
7. Be3 {[%clk 0:02:58.8]} 7... O-O {[%clk 0:02:48.3]} 8. Nge2 {[%clk 0:02:57.7]}
8... Ng4 {[%clk 0:02:41.9]} 9. Qd2 {[%clk 0:02:52.3]} 9... Nxe3 {[%clk
0:02:40.1]} 10. Qxe3 {[%clk 0:02:52]} 10... d5 {[%clk 0:02:28.7]} 11. exd5
{[%clk 0:02:51]} 11... exd5 {[%clk 0:02:28.1]} 12. Nxd5 {[%clk 0:02:49]} 12...
Bd6 {[%clk 0:02:18.6]} 13. Nec3 {[%clk 0:02:40.8]} 13... Re8 {[%clk 0:02:16]}
14. Be4 {[%clk 0:02:38.3]} 14... Bf5 {[%clk 0:02:09.9]} 15. O-O-O {[%clk
0:02:34.8]} 15... Bxe4 {[%clk 0:02:06.2]} 16. dxe4 {[%clk 0:02:30]} 16... f6
{[%clk 0:01:57.4]} 17. h4 {[%clk 0:02:24.2]} 17... Nd4 {[%clk 0:01:41.9]} 18.
Ne2 {[%clk 0:02:15.4]} 18... Nxe2+ {[%clk 0:01:40.1]} 19. Qxe2 {[%clk
0:02:14.4]} 19... Qa5 {[%clk 0:01:32.7]} 20. a3 {[%clk 0:02:07.6]} 20... Rad8
{[%clk 0:01:18.2]} 21. Qc4 {[%clk 0:02:01.8]} 21... b5 {[%clk 0:01:13.2]} 22.
Nxf6+ {[%clk 0:01:31.4]} 22... Kh8 {[%clk 0:01:05.1]} 23. Qf7 {[%clk 0:00:50.9]}
23... Re7 {[%clk 0:00:37.8]} 24. Qh5 {[%clk 0:00:15.9]} 24... gxf6 {[%clk
0:00:37.1]} 25. Qf5 {[%clk 0:00:12.1]} 25... Rf7 {[%clk 0:00:30.1]} 26. Qe6
{[%clk 0:00:09.7]} 26... Qc7 {[%clk 0:00:25.7]} 0-1

[Event "Betsys MČR v online bleskovém šachu 2021"]
[Site "Chess.com"]
[Date "2021.04.17"]
[Round "11"]
[White "xnepom"]
[Black "Jakuboss22005"]
[Result "1-0"]
[WhiteElo "2255"]
[BlackElo "2079"]
[TimeControl "180+1"]
[EndTime "10:49:28 PDT"]
[Termination "Uživatel xnepom zvítězil po vzdání soupeře"]

1. e4 {[%clk 0:02:59.9]} 1... c5 {[%clk 0:02:58.8]} 2. c3 {[%clk 0:03:00]} 2...
Nf6 {[%clk 0:02:58.1]} 3. e5 {[%clk 0:03:00.4]} 3... Nd5 {[%clk 0:02:58.4]} 4.
d4 {[%clk 0:03:01.2]} 4... cxd4 {[%clk 0:02:58.7]} 5. Nf3 {[%clk 0:03:02]} 5...
e6 {[%clk 0:02:58.3]} 6. cxd4 {[%clk 0:03:01.3]} 6... b6 {[%clk 0:02:58.6]} 7.
a3 {[%clk 0:02:58.9]} 7... Bb7 {[%clk 0:02:57.6]} 8. Bd3 {[%clk 0:02:57.8]} 8...
Be7 {[%clk 0:02:56]} 9. O-O {[%clk 0:02:57.3]} 9... f6 {[%clk 0:02:56]} 10. Qe2
{[%clk 0:02:58]} 10... Nc6 {[%clk 0:02:50.5]} 11. Bd2 {[%clk 0:02:57.3]} 11...
O-O {[%clk 0:02:49]} 12. Nc3 {[%clk 0:02:57.5]} 12... Na5 {[%clk 0:02:37.2]} 13.
exf6 {[%clk 0:02:47.2]} 13... Bxf6 {[%clk 0:02:36.1]} 14. Ne5 {[%clk 0:02:42.6]}
14... Nb3 {[%clk 0:02:30]} 15. Qh5 {[%clk 0:02:29.7]} 15... g6 {[%clk
0:01:58.3]} 16. Nxg6 {[%clk 0:01:59.9]} 16... Qe8 {[%clk 0:01:53.6]} 17. Bh6
{[%clk 0:01:52]} 17... Bg7 {[%clk 0:01:43.8]} 18. Bxg7 {[%clk 0:01:46.3]} 18...
Kxg7 {[%clk 0:01:44.7]} 19. Qe5+ {[%clk 0:01:44.1]} 19... Rf6 {[%clk 0:01:39.1]}
20. Nxd5 {[%clk 0:01:28.6]} 20... Bxd5 {[%clk 0:01:33.5]} 21. Nf4 {[%clk
0:01:28.3]} 21... Nxa1 {[%clk 0:01:07.1]} 22. Nh5+ {[%clk 0:01:26.3]} 22... Qxh5
{[%clk 0:00:28.4]} 23. Qxh5 {[%clk 0:01:23.9]} 23... Nb3 {[%clk 0:00:28.5]} 24.
Qxh7+ {[%clk 0:01:22.5]} 24... Kf8 {[%clk 0:00:28.5]} 25. Qh8+ {[%clk
0:01:20.9]} 25... Ke7 {[%clk 0:00:28.5]} 26. Qg7+ {[%clk 0:01:18.4]} 26... Rf7
{[%clk 0:00:28.6]} 27. Qg5+ {[%clk 0:01:18.9]} 27... Kd6 {[%clk 0:00:21.1]} 28.
Bc2 {[%clk 0:01:16.5]} 28... Nxd4 {[%clk 0:00:15.5]} 29. Bd1 {[%clk 0:01:05.6]}
29... Kc6 {[%clk 0:00:10.1]} 30. h4 {[%clk 0:00:59.3]} 30... Kb7 {[%clk
0:00:09.8]} 31. h5 {[%clk 0:00:59]} 31... Raf8 {[%clk 0:00:04.8]} 32. h6 {[%clk
0:00:58.5]} 32... Nf5 {[%clk 0:00:05]} 33. Bc2 {[%clk 0:00:50.1]} 33... Rh8
{[%clk 0:00:03.9]} 34. Bxf5 {[%clk 0:00:49.6]} 34... Rxf5 {[%clk 0:00:04.8]} 35.
Qg7 {[%clk 0:00:49.4]} 35... Rhf8 {[%clk 0:00:02.1]} 36. h7 {[%clk 0:00:48]}
36... R5f7 {[%clk 0:00:01.9]} 37. Qxf7 {[%clk 0:00:47.3]} 37... Rxf7 {[%clk
0:00:02.8]} 38. h8=Q {[%clk 0:00:47.4]} 1-0

[Event "Betsys MČR v online bleskovém šachu 2021"]
[Site "Chess.com"]
[Date "2021.04.17"]
[Round "11"]
[White "jachymcarostrelec4"]
[Black "8_olda_8"]
[Result "1-0"]
[WhiteElo "1978"]
[BlackElo "1795"]
[TimeControl "180+1"]
[EndTime "10:49:28 PDT"]
[Termination "Uživatel jachymcarostrelec4 zvítězil na čas"]

1. d4 {[%clk 0:03:00.9]} 1... e6 {[%clk 0:02:47.9]} 2. c4 {[%clk 0:02:59.2]}
2... Nf6 {[%clk 0:02:45.7]} 3. Nc3 {[%clk 0:02:59]} 3... d5 {[%clk 0:02:45.2]}
4. Nf3 {[%clk 0:02:57.9]} 4... c6 {[%clk 0:02:44.5]} 5. Bf4 {[%clk 0:02:55.5]}
5... Bd6 {[%clk 0:02:41.4]} 6. Bxd6 {[%clk 0:02:53.4]} 6... Qxd6 {[%clk
0:02:42.3]} 7. e3 {[%clk 0:02:53.6]} 7... Nbd7 {[%clk 0:02:41.7]} 8. Be2 {[%clk
0:02:49.1]} 8... dxc4 {[%clk 0:02:41.3]} 9. Bxc4 {[%clk 0:02:48.3]} 9... b5
{[%clk 0:02:41.8]} 10. Be2 {[%clk 0:02:46.4]} 10... Bb7 {[%clk 0:02:37]} 11. O-O
{[%clk 0:02:43.9]} 11... a6 {[%clk 0:02:36.6]} 12. e4 {[%clk 0:02:38.7]} 12...
Qe7 {[%clk 0:02:11.7]} 13. e5 {[%clk 0:02:36.9]} 13... Nd5 {[%clk 0:02:11.7]}
14. Ne4 {[%clk 0:02:32.2]} 14... O-O {[%clk 0:02:10.8]} 15. Nd6 {[%clk
0:02:31.1]} 15... N7b6 {[%clk 0:02:04.2]} 16. Rc1 {[%clk 0:02:29.8]} 16... Rad8
{[%clk 0:01:43.5]} 17. Qd2 {[%clk 0:02:21.7]} 17... Nc8 {[%clk 0:01:41.8]} 18.
Ne4 {[%clk 0:02:07.9]} 18... f5 {[%clk 0:01:26.3]} 19. Nc5 {[%clk 0:02:04.6]}
19... Ncb6 {[%clk 0:01:17.3]} 20. Ng5 {[%clk 0:01:59.8]} 20... Bc8 {[%clk
0:01:15.3]} 21. f4 {[%clk 0:01:51.4]} 21... h6 {[%clk 0:01:14]} 22. Nf3 {[%clk
0:01:50.1]} 22... Nd7 {[%clk 0:01:11.3]} 23. b4 {[%clk 0:01:37.6]} 23... Nxc5
{[%clk 0:01:09.5]} 24. Rxc5 {[%clk 0:01:38.5]} 24... Bd7 {[%clk 0:00:53.5]} 25.
Ne1 {[%clk 0:01:35.8]} 25... Be8 {[%clk 0:00:46.9]} 26. Bf3 {[%clk 0:01:35]}
26... Nb6 {[%clk 0:00:42.6]} 27. Bxc6 {[%clk 0:01:21.4]} 27... Bxc6 {[%clk
0:00:42.5]} 28. Rxc6 {[%clk 0:01:22.3]} 28... Nc4 {[%clk 0:00:40.5]} 29. Qc3
{[%clk 0:01:22.6]} 29... Rc8 {[%clk 0:00:17.7]} 30. Rc5 {[%clk 0:01:18.4]} 30...
Rfd8 {[%clk 0:00:14.7]} 31. Nf3 {[%clk 0:01:17.5]} 31... Qd7 {[%clk 0:00:14.1]}
32. Rc1 {[%clk 0:01:02.3]} 32... Rxc5 {[%clk 0:00:12]} 33. bxc5 {[%clk
0:00:58.9]} 33... Qd5 {[%clk 0:00:12.6]} 34. Qc2 {[%clk 0:00:54.5]} 34... Rb8
{[%clk 0:00:09.2]} 35. Qe2 {[%clk 0:00:49.7]} 35... a5 {[%clk 0:00:07.7]} 36. a4
{[%clk 0:00:49]} 36... Na3 {[%clk 0:00:02.2]} 37. axb5 {[%clk 0:00:48.3]} 1-0

[Event "Betsys MČR v online bleskovém šachu 2021"]
[Site "Chess.com"]
[Date "2021.04.17"]
[Round "11"]
[White "Hapinka"]
[Black "marosino"]
[Result "1/2-1/2"]
[WhiteElo "1817"]
[BlackElo "1580"]
[TimeControl "180+1"]
[EndTime "10:49:30 PDT"]
[Termination "Remíza opakováním pozice"]

1. e4 {[%clk 0:03:00.9]} 1... d5 {[%clk 0:02:59.4]} 2. exd5 {[%clk 0:03:00.3]}
2... Nf6 {[%clk 0:02:58.9]} 3. d4 {[%clk 0:02:57.5]} 3... Bg4 {[%clk 0:02:57.7]}
4. Be2 {[%clk 0:02:48]} 4... Bxe2 {[%clk 0:02:57.4]} 5. Qxe2 {[%clk 0:02:48.1]}
5... Qxd5 {[%clk 0:02:57.1]} 6. Nf3 {[%clk 0:02:44.6]} 6... Nc6 {[%clk 0:02:54]}
7. Nc3 {[%clk 0:02:39.3]} 7... Qd7 {[%clk 0:02:53.2]} 8. Be3 {[%clk 0:02:29.3]}
8... e6 {[%clk 0:02:52.6]} 9. Rd1 {[%clk 0:02:27.2]} 9... O-O-O {[%clk
0:02:51.4]} 10. O-O {[%clk 0:02:24.9]} 10... Nd5 {[%clk 0:02:44.9]} 11. Nxd5
{[%clk 0:02:19.5]} 11... exd5 {[%clk 0:02:44.6]} 12. Qb5 {[%clk 0:02:15.2]}
12... a6 {[%clk 0:02:42]} 13. Qa4 {[%clk 0:02:08.5]} 13... Ne5 {[%clk 0:02:38]}
14. Qxd7+ {[%clk 0:02:06.3]} 14... Nxd7 {[%clk 0:02:37.1]} 15. Ng5 {[%clk
0:02:02.7]} 15... Rg8 {[%clk 0:02:30.4]} 16. Nxf7 {[%clk 0:02:00.9]} 16... Re8
{[%clk 0:02:30.3]} 17. Ng5 {[%clk 0:01:55.6]} 17... h6 {[%clk 0:02:29.2]} 18.
Nf3 {[%clk 0:01:55]} 18... Bd6 {[%clk 0:02:24.2]} 19. Rfe1 {[%clk 0:01:54.1]}
19... Nf6 {[%clk 0:02:23.4]} 20. c3 {[%clk 0:01:42.3]} 20... g5 {[%clk
0:02:22.4]} 21. Bc1 {[%clk 0:01:36.7]} 21... g4 {[%clk 0:02:21.6]} 22. Ne5
{[%clk 0:01:36.3]} 22... h5 {[%clk 0:02:14.3]} 23. c4 {[%clk 0:01:29.5]} 23...
dxc4 {[%clk 0:02:10.9]} 24. Nxc4 {[%clk 0:01:29.4]} 24... Nd5 {[%clk 0:02:02.8]}
25. Nxd6+ {[%clk 0:01:27]} 25... cxd6 {[%clk 0:02:02.6]} 26. Kf1 {[%clk
0:01:15.8]} 26... h4 {[%clk 0:02:01.6]} 27. Rxe8+ {[%clk 0:01:14.8]} 27... Rxe8
{[%clk 0:01:59.8]} 28. Bg5 {[%clk 0:01:13]} 28... h3 {[%clk 0:01:57.8]} 29. gxh3
{[%clk 0:01:09.6]} 29... gxh3 {[%clk 0:01:57.5]} 30. Rd3 {[%clk 0:01:07.5]}
30... Rg8 {[%clk 0:01:56.2]} 31. f4 {[%clk 0:01:05.6]} 31... Rh8 {[%clk
0:01:45]} 32. Kf2 {[%clk 0:01:00.4]} 32... Kd7 {[%clk 0:01:39.6]} 33. Rb3 {[%clk
0:00:57.4]} 33... Kc6 {[%clk 0:01:38.1]} 34. Kg3 {[%clk 0:00:53.3]} 34... b5
{[%clk 0:01:34.5]} 35. Kg4 {[%clk 0:00:53.2]} 35... a5 {[%clk 0:01:30.4]} 36.
Rxh3 {[%clk 0:00:52.5]} 36... Rg8 {[%clk 0:01:14.6]} 37. Rh6 {[%clk 0:00:47.5]}
37... b4 {[%clk 0:01:13.4]} 38. f5 {[%clk 0:00:44.6]} 38... Ne3+ {[%clk
0:01:11.4]} 39. Kf4 {[%clk 0:00:36.6]} 39... Ng2+ {[%clk 0:01:09.6]} 40. Kg4
{[%clk 0:00:31.4]} 40... Ne3+ {[%clk 0:01:07.4]} 41. Kh5 {[%clk 0:00:30.4]}
41... Nxf5 {[%clk 0:01:05.4]} 42. Rf6 {[%clk 0:00:28.9]} 42... Nxd4 {[%clk
0:01:00.5]} 43. Bf4 {[%clk 0:00:28.1]} 43... Rh8+ {[%clk 0:00:57.3]} 44. Kg4
{[%clk 0:00:27.2]} 44... Rg8+ {[%clk 0:00:56.6]} 45. Kh3 {[%clk 0:00:23.7]}
45... Rh8+ {[%clk 0:00:55.5]} 46. Kg2 {[%clk 0:00:23.2]} 46... Rg8+ {[%clk
0:00:54.6]} 47. Kh3 {[%clk 0:00:22.9]} 47... Rh8+ {[%clk 0:00:54.1]} 48. Kg2
{[%clk 0:00:23.1]} 48... Rg8+ {[%clk 0:00:53.7]} 49. Kh3 {[%clk 0:00:23.4]}
1/2-1/2

[Event "Betsys MČR v online bleskovém šachu 2021"]
[Site "Chess.com"]
[Date "2021.04.17"]
[Round "11"]
[White "Jaja15F"]
[Black "Emicka1330"]
[Result "0-1"]
[WhiteElo "1131"]
[BlackElo "1543"]
[TimeControl "180+1"]
[EndTime "10:49:30 PDT"]
[Termination "Uživatel Emicka1330 zvítězil na čas"]

1. d4 {[%clk 0:02:51.1]} 1... Nf6 {[%clk 0:02:59.3]} 2. Nf3 {[%clk 0:02:48.5]}
2... g6 {[%clk 0:02:58.3]} 3. Nc3 {[%clk 0:02:44.6]} 3... Bg7 {[%clk 0:02:58.1]}
4. e3 {[%clk 0:02:44.4]} 4... c5 {[%clk 0:02:58.1]} 5. Bc4 {[%clk 0:02:37.3]}
5... cxd4 {[%clk 0:02:55.9]} 6. Nxd4 {[%clk 0:02:33.5]} 6... O-O {[%clk
0:02:55]} 7. O-O {[%clk 0:02:32.2]} 7... d5 {[%clk 0:02:48.9]} 8. Bd3 {[%clk
0:02:25.9]} 8... e5 {[%clk 0:02:45.5]} 9. Nb3 {[%clk 0:02:21.7]} 9... Nc6 {[%clk
0:02:36.1]} 10. Bd2 {[%clk 0:02:17]} 10... e4 {[%clk 0:02:31.7]} 11. Bb5 {[%clk
0:02:12.6]} 11... Be6 {[%clk 0:02:24.7]} 12. h3 {[%clk 0:02:07.5]} 12... Ne5
{[%clk 0:02:17.7]} 13. Nd4 {[%clk 0:02:00.4]} 13... a6 {[%clk 0:02:10.2]} 14.
Nxe6 {[%clk 0:01:58]} 14... fxe6 {[%clk 0:02:09.3]} 15. Be2 {[%clk 0:01:55.3]}
15... b5 {[%clk 0:02:07.5]} 16. f4 {[%clk 0:01:51.9]} 16... Nc4 {[%clk
0:02:06.3]} 17. Bxc4 {[%clk 0:01:49.9]} 17... bxc4 {[%clk 0:02:05.9]} 18. a3
{[%clk 0:01:45.8]} 18... Rb8 {[%clk 0:02:01.9]} 19. Rb1 {[%clk 0:01:44.8]} 19...
Nd7 {[%clk 0:01:51]} 20. b3 {[%clk 0:01:37.4]} 20... cxb3 {[%clk 0:01:47.8]} 21.
cxb3 {[%clk 0:01:34.1]} 21... Qc7 {[%clk 0:01:44.9]} 22. Qc2 {[%clk 0:01:29.2]}
22... Rfc8 {[%clk 0:01:38.5]} 23. Rfc1 {[%clk 0:01:26.4]} 23... Qd6 {[%clk
0:01:35.9]} 24. b4 {[%clk 0:01:20.9]} 24... Nb6 {[%clk 0:01:34]} 25. Rb3 {[%clk
0:01:04.3]} 25... Nc4 {[%clk 0:01:33]} 26. Kh1 {[%clk 0:00:55.7]} 26... Qb6
{[%clk 0:01:29.8]} 27. Na4 {[%clk 0:00:33.3]} 27... Qa7 {[%clk 0:01:20.5]} 28.
Nc5 {[%clk 0:00:24.6]} 28... Rc6 {[%clk 0:01:03.9]} 29. Bc3 {[%clk 0:00:19.2]}
29... Rbc8 {[%clk 0:00:55.1]} 30. Bd2 {[%clk 0:00:14.5]} 30... Qf7 {[%clk
0:00:49]} 31. Rf1 {[%clk 0:00:11.6]} 31... Qf5 {[%clk 0:00:45.2]} 32. Rf2 {[%clk
0:00:09.5]} 32... Qh5 {[%clk 0:00:42.6]} 0-1